[Event "GrandPrix_30.05"]
[Site "Chess.com"]
[Date "2020.05.30"]
[Round "5"]
[White "SamadovRead"]
[Black "Valeriy_Neverov"]
[Result "0-1"]
[WhiteElo "1955"]
[BlackElo "2113"]
[TimeControl "600+2"]
[EndTime "10:29:49 PDT"]
[Termination "Valeriy_Neverov won by checkmate"]

1. d4 {[%clk 0:10:01.9]} 1... g6 {[%clk 0:09:57.9]} 2. c4 {[%clk 0:10:02.2]}
2... Bg7 {[%clk 0:09:58.6]} 3. Nf3 {[%clk 0:10:02.5]} 3... f5 {[%clk 0:09:59.1]}
4. Nc3 {[%clk 0:10:00.7]} 4... Nf6 {[%clk 0:09:58.2]} 5. Bg5 {[%clk 0:09:58.5]}
5... d6 {[%clk 0:09:58.1]} 6. e3 {[%clk 0:09:58]} 6... c6 {[%clk 0:09:37.5]} 7.
Qc2 {[%clk 0:09:53.9]} 7... Na6 {[%clk 0:09:19.7]} 8. a3 {[%clk 0:09:44.9]} 8...
O-O {[%clk 0:09:17.5]} 9. Be2 {[%clk 0:09:33.6]} 9... Qe8 {[%clk 0:09:01.9]} 10.
O-O {[%clk 0:08:02.3]} 10... e5 {[%clk 0:08:59.1]} 11. dxe5 {[%clk 0:06:52]}
11... dxe5 {[%clk 0:08:57.1]} 12. Rad1 {[%clk 0:06:46.3]} 12... h6 {[%clk
0:07:40.9]} 13. Bxf6 {[%clk 0:06:34.9]} 13... Bxf6 {[%clk 0:07:40.7]} 14. b4
{[%clk 0:05:58.4]} 14... Be6 {[%clk 0:07:24.1]} 15. c5 {[%clk 0:05:32.2]} 15...
Nc7 {[%clk 0:07:09.6]} 16. Nd2 {[%clk 0:04:37.7]} 16... Qf7 {[%clk 0:06:47.9]}
17. Ncb1 {[%clk 0:04:32.6]} 17... Nd5 {[%clk 0:06:21.1]} 18. Nc4 {[%clk
0:04:26.5]} 18... e4 {[%clk 0:06:21.8]} 19. Nd6 {[%clk 0:04:11.7]} 19... Qe7
{[%clk 0:06:22.3]} 20. Bc4 {[%clk 0:03:45.9]} 20... Rad8 {[%clk 0:04:20.1]} 21.
Bxd5 {[%clk 0:03:29.4]} 21... Bxd5 {[%clk 0:04:18.6]} 22. Nc3 {[%clk 0:03:30.6]}
22... Be6 {[%clk 0:04:19.4]} 23. Ne2 {[%clk 0:03:22.6]} 23... Kh7 {[%clk
0:04:00.6]} 24. Nf4 {[%clk 0:03:04.2]} 24... Bg8 {[%clk 0:03:50.4]} 25. Rd2
{[%clk 0:02:29.9]} 25... Rd7 {[%clk 0:03:24.1]} 26. Rfd1 {[%clk 0:02:29.6]}
26... Rfd8 {[%clk 0:03:24.9]} 27. g4 {[%clk 0:02:01.5]} 27... fxg4 {[%clk
0:02:49.2]} 28. Nxe4 {[%clk 0:01:59.2]} 28... Rxd2 {[%clk 0:02:42.1]} 29. Rxd2
{[%clk 0:01:59.2]} 29... Rxd2 {[%clk 0:02:42.1]} 30. Nxf6+ {[%clk 0:02:00.3]}
30... Qxf6 {[%clk 0:02:41.7]} 31. Qxd2 {[%clk 0:02:02]} 31... g5 {[%clk
0:02:18.9]} 32. Qd3+ {[%clk 0:01:31.8]} 32... Kh8 {[%clk 0:02:14.9]} 33. Ne2
{[%clk 0:01:25.1]} 33... Bd5 {[%clk 0:01:37.5]} 34. e4 {[%clk 0:00:45]} 34...
Be6 {[%clk 0:01:31.4]} 35. Nd4 {[%clk 0:00:41.7]} 35... Kg7 {[%clk 0:01:20.5]}
36. Qc3 {[%clk 0:00:35.6]} 36... Kf7 {[%clk 0:01:09.1]} 37. Qe3 {[%clk
0:00:32.7]} 37... Qf4 {[%clk 0:01:02.9]} 38. Qe1 {[%clk 0:00:28.4]} 38... h5
{[%clk 0:00:30.7]} 39. Nxe6 {[%clk 0:00:24.4]} 39... Kxe6 {[%clk 0:00:30.7]} 40.
Qe2 {[%clk 0:00:24.6]} 40... h4 {[%clk 0:00:28.2]} 41. Qc4+ {[%clk 0:00:22.3]}
41... Ke5 {[%clk 0:00:25.8]} 42. Qc3+ {[%clk 0:00:20.8]} 42... Kxe4 {[%clk
0:00:25]} 43. Qc4+ {[%clk 0:00:22.2]} 43... Ke5 {[%clk 0:00:25.7]} 44. Qc3+
{[%clk 0:00:21.5]} 44... Qd4 {[%clk 0:00:23]} 45. Qe1+ {[%clk 0:00:22.3]} 45...
Kf5 {[%clk 0:00:19.1]} 46. Qb1+ {[%clk 0:00:19.7]} 46... Qe4 {[%clk 0:00:18.3]}
47. Qd1 {[%clk 0:00:19]} 47... h3 {[%clk 0:00:14.5]} 48. Qd7+ {[%clk 0:00:19.8]}
48... Ke5 {[%clk 0:00:07.5]} 49. Qd6+ {[%clk 0:00:15.6]} 49... Kf5 {[%clk
0:00:08.4]} 50. Qf8+ {[%clk 0:00:15.5]} 50... Ke5 {[%clk 0:00:06.3]} 51. Qd6+
{[%clk 0:00:16.5]} 51... Kf5 {[%clk 0:00:06.7]} 52. Qf8+ {[%clk 0:00:17.8]}
52... Kg6 {[%clk 0:00:06.2]} 53. Qg8+ {[%clk 0:00:18.9]} 53... Kf6 {[%clk
0:00:06.6]} 54. Qf8+ {[%clk 0:00:20]} 54... Ke6 {[%clk 0:00:06.9]} 55. Qe8+
{[%clk 0:00:21.1]} 55... Kd5 {[%clk 0:00:07.2]} 56. Qd7+ {[%clk 0:00:22.1]}
56... Kc4 {[%clk 0:00:06.9]} 57. Qf7+ {[%clk 0:00:23.2]} 57... Kc3 {[%clk
0:00:07.3]} 58. Qf6+ {[%clk 0:00:23.9]} 58... Kb3 {[%clk 0:00:07.5]} 59. Kf1
{[%clk 0:00:21.1]} 59... Kxa3 {[%clk 0:00:07.4]} 60. Qa1+ {[%clk 0:00:20]} 60...
Kxb4 {[%clk 0:00:08.2]} 61. Qb2+ {[%clk 0:00:21.5]} 61... Kxc5 {[%clk 0:00:09]}
62. Qa3+ {[%clk 0:00:22.9]} 62... Qb4 {[%clk 0:00:08.2]} 63. Qe3+ {[%clk
0:00:23.7]} 63... Kb5 {[%clk 0:00:06.8]} 64. Qxg5+ {[%clk 0:00:24.7]} 64... c5
{[%clk 0:00:06.7]} 65. Qd8 {[%clk 0:00:24.6]} 65... b6 {[%clk 0:00:05.5]} 66.
Qd7+ {[%clk 0:00:25.3]} 66... Ka6 {[%clk 0:00:04.6]} 67. Qc8+ {[%clk 0:00:26.5]}
67... Ka5 {[%clk 0:00:05.4]} 68. Qb7 {[%clk 0:00:26.9]} 68... a6 {[%clk
0:00:06.1]} 69. Qd5 {[%clk 0:00:24.3]} 69... Qd4 {[%clk 0:00:05.1]} 70. Qa2+
{[%clk 0:00:24.7]} 70... Kb5 {[%clk 0:00:05.9]} 71. Qb3+ {[%clk 0:00:25.4]}
71... Qb4 {[%clk 0:00:06.8]} 72. Qd1 {[%clk 0:00:23.4]} 72... Qc4+ {[%clk
0:00:07]} 73. Kg1 {[%clk 0:00:23.9]} 73... a5 {[%clk 0:00:07.6]} 74. Qd7+ {[%clk
0:00:25]} 74... Kb4 {[%clk 0:00:07.8]} 75. Qd2+ {[%clk 0:00:26.1]} 75... Qc3
{[%clk 0:00:08.6]} 76. Qf4+ {[%clk 0:00:26.8]} 76... c4 {[%clk 0:00:08.1]} 77.
Qd6+ {[%clk 0:00:27.7]} 77... Ka4 {[%clk 0:00:08]} 78. Qc6+ {[%clk 0:00:24.4]}
78... b5 {[%clk 0:00:08.6]} 79. Kf1 {[%clk 0:00:25.2]} 79... Qd3+ {[%clk
0:00:08.2]} 80. Ke1 {[%clk 0:00:26.5]} 80... c3 {[%clk 0:00:08.3]} 81. Qc5
{[%clk 0:00:27.8]} 81... Qd2+ {[%clk 0:00:08.1]} 82. Kf1 {[%clk 0:00:28.9]}
82... Qd1# {[%clk 0:00:09]} 0-1

[Event "GrandPrix_30.05"]
[Site "Chess.com"]
[Date "2020.05.30"]
[Round "5"]
[White "Fandorine"]
[Black "Meri-Arabidze"]
[Result "0-1"]
[WhiteElo "2499"]
[BlackElo "2278"]
[TimeControl "600+2"]
[EndTime "10:29:52 PDT"]
[Termination "Meri-Arabidze won by resignation"]

1. e4 {[%clk 0:10:01.9]} 1... c5 {[%clk 0:10:00.4]} 2. Nf3 {[%clk 0:10:02.8]}
2... e6 {[%clk 0:10:01.7]} 3. d4 {[%clk 0:10:02.1]} 3... cxd4 {[%clk 0:10:02.8]}
4. Nxd4 {[%clk 0:10:04]} 4... Nc6 {[%clk 0:10:04.1]} 5. Nc3 {[%clk 0:10:04.2]}
5... a6 {[%clk 0:10:05.2]} 6. Be2 {[%clk 0:09:59.9]} 6... d6 {[%clk 0:10:04.5]}
7. Nxc6 {[%clk 0:09:52.6]} 7... bxc6 {[%clk 0:10:04.9]} 8. Qd3 {[%clk
0:09:54.5]} 8... Nf6 {[%clk 0:09:58]} 9. Qg3 {[%clk 0:09:53.9]} 9... h5 {[%clk
0:09:10.6]} 10. h4 {[%clk 0:09:42.9]} 10... e5 {[%clk 0:09:04.3]} 11. O-O {[%clk
0:09:38.5]} 11... Bg4 {[%clk 0:08:26.1]} 12. Bg5 {[%clk 0:08:56.2]} 12... Bxe2
{[%clk 0:08:14.8]} 13. Nxe2 {[%clk 0:08:55.6]} 13... Be7 {[%clk 0:08:01.3]} 14.
Nc3 {[%clk 0:08:50.8]} 14... O-O {[%clk 0:07:47.6]} 15. Rad1 {[%clk 0:08:50.1]}
15... Ng4 {[%clk 0:07:34.5]} 16. Bxe7 {[%clk 0:08:50.4]} 16... Qxe7 {[%clk
0:07:35.3]} 17. Rfe1 {[%clk 0:08:52.3]} 17... Rad8 {[%clk 0:07:27]} 18. Rd2
{[%clk 0:08:40.1]} 18... Qb7 {[%clk 0:05:56.4]} 19. b3 {[%clk 0:07:52.9]} 19...
Qb4 {[%clk 0:05:56.8]} 20. Qd3 {[%clk 0:07:42.3]} 20... a5 {[%clk 0:05:48.8]}
21. g3 {[%clk 0:07:30.1]} 21... Nh6 {[%clk 0:04:55.1]} 22. Red1 {[%clk
0:07:07.4]} 22... f5 {[%clk 0:04:54.8]} 23. exf5 {[%clk 0:07:07.6]} 23... d5
{[%clk 0:04:51.2]} 24. Na4 {[%clk 0:06:12.5]} 24... Nxf5 {[%clk 0:04:39.5]} 25.
c4 {[%clk 0:04:43.7]} 25... Nd4 {[%clk 0:04:24.6]} 26. Kg2 {[%clk 0:04:43.6]}
26... Nf3 {[%clk 0:04:10.8]} 27. Re2 {[%clk 0:04:43.7]} 27... e4 {[%clk
0:03:58.5]} 28. Qe3 {[%clk 0:04:44.2]} 28... Qd6 {[%clk 0:02:55.2]} 29. cxd5
{[%clk 0:04:02]} 29... cxd5 {[%clk 0:02:57.1]} 30. Qb6 {[%clk 0:04:03.2]} 30...
Qe5 {[%clk 0:02:54.8]} 31. Nc5 {[%clk 0:02:38.8]} 31... Qf5 {[%clk 0:02:21.9]}
32. Qe6+ {[%clk 0:02:32.2]} 32... Qf7 {[%clk 0:01:49.9]} 33. a3 {[%clk
0:01:27.9]} 33... Rfe8 {[%clk 0:01:46.1]} 34. Qxf7+ {[%clk 0:01:25.1]} 34...
Kxf7 {[%clk 0:01:48]} 35. Nb7 {[%clk 0:01:13.3]} 35... Rd7 {[%clk 0:01:39.9]}
36. Nxa5 {[%clk 0:01:11.6]} 36... d4 {[%clk 0:01:41.5]} 37. Nc4 {[%clk
0:01:03.9]} 37... d3 {[%clk 0:01:41.3]} 38. Re3 {[%clk 0:01:03.9]} 38... Rd4
{[%clk 0:01:29.6]} 39. Kf1 {[%clk 0:00:40.2]} 39... Rb8 {[%clk 0:01:24.8]} 40.
Rxf3+ {[%clk 0:00:40.1]} 40... exf3 {[%clk 0:01:22.5]} 41. Ne5+ {[%clk
0:00:41.2]} 41... Kf6 {[%clk 0:01:13.8]} 42. Nc6 {[%clk 0:00:35.9]} 42... Rbd8
{[%clk 0:01:06.7]} 43. Nxd8 {[%clk 0:00:22.1]} 43... Rxd8 {[%clk 0:01:06.8]} 44.
Ke1 {[%clk 0:00:12.7]} 44... Re8+ {[%clk 0:00:50.7]} 45. Kd2 {[%clk 0:00:13.9]}
45... Re2+ {[%clk 0:00:52]} 46. Kxd3 {[%clk 0:00:14.6]} 46... Rxf2 {[%clk
0:00:53.9]} 47. Ke3 {[%clk 0:00:08.1]} 47... Rb2 {[%clk 0:00:50.5]} 48. b4
{[%clk 0:00:07.5]} 48... Rb3+ {[%clk 0:00:46.1]} 49. Kf2 {[%clk 0:00:08.8]}
49... Rxa3 {[%clk 0:00:46.7]} 50. Rb1 {[%clk 0:00:10.4]} 50... g5 {[%clk
0:00:16.7]} 51. b5 {[%clk 0:00:08.7]} 51... g4 {[%clk 0:00:16.7]} 52. b6 {[%clk
0:00:08.7]} 52... Ra2+ {[%clk 0:00:17.8]} 53. Ke3 {[%clk 0:00:06.3]} 53... Ra3+
{[%clk 0:00:18.2]} 54. Ke4 {[%clk 0:00:07.6]} 54... Ra8 {[%clk 0:00:15.6]} 55.
b7 {[%clk 0:00:06.6]} 55... Re8+ {[%clk 0:00:15.2]} 56. Kd4 {[%clk 0:00:04.1]}
56... Rb8 {[%clk 0:00:15.6]} 57. Ke3 {[%clk 0:00:04.8]} 57... Re8+ {[%clk
0:00:14.6]} 58. Kf2 {[%clk 0:00:05.2]} 58... Rb8 {[%clk 0:00:15.6]} 59. Rb5
{[%clk 0:00:05.3]} 59... Kg6 {[%clk 0:00:14.8]} 60. Rb6+ {[%clk 0:00:06.5]}
60... Kf5 {[%clk 0:00:15.6]} 61. Ke3 {[%clk 0:00:07.9]} 61... Ke5 {[%clk
0:00:15.7]} 62. Rb5+ {[%clk 0:00:08.4]} 62... Kf6 {[%clk 0:00:16.7]} 63. Kf2
{[%clk 0:00:04.8]} 63... Kg6 {[%clk 0:00:17.2]} 64. Rb4 {[%clk 0:00:06.1]} 64...
Kf5 {[%clk 0:00:18]} 65. Rb2 {[%clk 0:00:06]} 65... Kg6 {[%clk 0:00:18.4]} 66.
Ke3 {[%clk 0:00:06.8]} 66... Kf5 {[%clk 0:00:19.7]} 67. Kd4 {[%clk 0:00:08.1]}
67... Rd8+ {[%clk 0:00:19.5]} 68. Kc5 {[%clk 0:00:08.3]} 68... Rb8 {[%clk
0:00:20.6]} 69. Kd5 {[%clk 0:00:09.2]} 69... Rd8+ {[%clk 0:00:18.6]} 70. Kc6
{[%clk 0:00:10.5]} 70... Ke4 {[%clk 0:00:18.3]} 71. Kc7 {[%clk 0:00:11.4]} 71...
Rg8 {[%clk 0:00:17.6]} 72. b8=Q {[%clk 0:00:09.2]} 72... Rxb8 {[%clk 0:00:18.5]}
73. Kxb8 {[%clk 0:00:10.6]} 73... Ke3 {[%clk 0:00:19.9]} 74. Kc7 {[%clk
0:00:06.3]} 74... f2 {[%clk 0:00:20.9]} 75. Rb1 {[%clk 0:00:07.3]} 75... Ke2
{[%clk 0:00:16.5]} 76. Kd6 {[%clk 0:00:08.5]} 76... f1=Q {[%clk 0:00:13.3]} 77.
Rxf1 {[%clk 0:00:09.8]} 77... Kxf1 {[%clk 0:00:15.2]} 78. Ke5 {[%clk 0:00:11.7]}
78... Kg2 {[%clk 0:00:15.1]} 79. Kf4 {[%clk 0:00:13.6]} 79... Kf2 {[%clk
0:00:16.3]} 80. Kg5 {[%clk 0:00:15.4]} 80... Kxg3 {[%clk 0:00:17.6]} 81. Kxh5
{[%clk 0:00:17.3]} 81... Kf4 {[%clk 0:00:18]} 82. Kg6 {[%clk 0:00:19.2]} 82...
g3 {[%clk 0:00:19.6]} 83. h5 {[%clk 0:00:21.1]} 83... g2 {[%clk 0:00:21.2]} 84.
h6 {[%clk 0:00:23]} 84... g1=Q+ {[%clk 0:00:22.7]} 85. Kf7 {[%clk 0:00:24.9]}
85... Qh2 {[%clk 0:00:23.3]} 86. h7 {[%clk 0:00:26.8]} 86... Qxh7+ {[%clk
0:00:24.1]} 0-1

[Event "GrandPrix_30.05"]
[Site "Chess.com"]
[Date "2020.05.30"]
[Round "5"]
[White "VincentKeymer"]
[Black "MikaelyanArman1996"]
[Result "1/2-1/2"]
[WhiteElo "2597"]
[BlackElo "2386"]
[TimeControl "600+2"]
[EndTime "10:29:55 PDT"]
[Termination "Game drawn by repetition"]

1. Nf3 {[%clk 0:10:01.2]} 1... d5 {[%clk 0:10:00]} 2. e3 {[%clk 0:10:02.1]} 2...
Nf6 {[%clk 0:10:00.1]} 3. c4 {[%clk 0:10:03.6]} 3... c6 {[%clk 0:10:00.7]} 4.
Nc3 {[%clk 0:10:04.1]} 4... Nbd7 {[%clk 0:10:01.1]} 5. Qc2 {[%clk 0:10:04.2]}
5... e5 {[%clk 0:09:49]} 6. cxd5 {[%clk 0:10:04.3]} 6... Nxd5 {[%clk 0:09:44.1]}
7. a3 {[%clk 0:10:04.1]} 7... Be7 {[%clk 0:09:12.7]} 8. b4 {[%clk 0:09:54.4]}
8... O-O {[%clk 0:09:01.6]} 9. Bd3 {[%clk 0:09:52.6]} 9... g6 {[%clk 0:08:43.1]}
10. Bb2 {[%clk 0:09:50.3]} 10... Bf6 {[%clk 0:08:25.2]} 11. O-O {[%clk
0:09:32.5]} 11... Bg7 {[%clk 0:08:12.8]} 12. b5 {[%clk 0:08:48]} 12... Nc5
{[%clk 0:07:56.5]} 13. Nxd5 {[%clk 0:08:30.8]} 13... Qxd5 {[%clk 0:06:23.1]} 14.
Bc4 {[%clk 0:08:27.8]} 14... Bf5 {[%clk 0:05:46.5]} 15. Bxd5 {[%clk 0:08:03.7]}
15... Bxc2 {[%clk 0:05:46.3]} 16. bxc6 {[%clk 0:08:05]} 16... bxc6 {[%clk
0:05:18.4]} 17. Bxc6 {[%clk 0:08:03.4]} 17... Rac8 {[%clk 0:05:16.4]} 18. Rac1
{[%clk 0:07:57]} 18... Nd3 {[%clk 0:04:25]} 19. Rxc2 {[%clk 0:07:55.4]} 19...
Nxb2 {[%clk 0:04:26.1]} 20. Rxb2 {[%clk 0:07:27.6]} 20... Rxc6 {[%clk
0:04:23.3]} 21. Rb4 {[%clk 0:07:27.6]} 21... Ra6 {[%clk 0:04:11.9]} 22. a4
{[%clk 0:07:26.8]} 22... Rc8 {[%clk 0:04:06.4]} 23. g4 {[%clk 0:06:44.7]} 23...
Bf8 {[%clk 0:03:15.4]} 24. Re4 {[%clk 0:06:43.3]} 24... f6 {[%clk 0:03:16.8]}
25. Rb1 {[%clk 0:06:39.5]} 25... Bd6 {[%clk 0:03:06.2]} 26. Rb5 {[%clk 0:05:51]}
26... h6 {[%clk 0:02:55.5]} 27. Kf1 {[%clk 0:05:12.3]} 27... Kf7 {[%clk
0:02:49.5]} 28. Ke2 {[%clk 0:05:07.5]} 28... Rc7 {[%clk 0:02:33.7]} 29. a5
{[%clk 0:04:27.2]} 29... Rc5 {[%clk 0:02:23]} 30. Rb7+ {[%clk 0:04:24.5]} 30...
Rc7 {[%clk 0:02:22.2]} 31. Rxc7+ {[%clk 0:03:27.9]} 31... Bxc7 {[%clk
0:02:24.1]} 32. Rc4 {[%clk 0:03:29.5]} 32... Bd6 {[%clk 0:02:21]} 33. Ra4 {[%clk
0:03:15.9]} 33... Bc7 {[%clk 0:02:21.6]} 34. Rb4 {[%clk 0:03:16.2]} 34... Ke6
{[%clk 0:02:17.2]} 35. Rb7 {[%clk 0:03:13.8]} 35... Kd7 {[%clk 0:02:10.6]} 36.
Nh4 {[%clk 0:03:07.5]} 36... Kc6 {[%clk 0:01:44.6]} 37. Rb2 {[%clk 0:03:00.2]}
37... g5 {[%clk 0:01:23.5]} 38. Nf5 {[%clk 0:03:00.2]} 38... Rxa5 {[%clk
0:01:24.6]} 39. Nxh6 {[%clk 0:03:01.4]} 39... Rb5 {[%clk 0:01:02.7]} 40. Ra2
{[%clk 0:02:56.4]} 40... Ra5 {[%clk 0:00:53.9]} 41. Rxa5 {[%clk 0:02:04.9]}
41... Bxa5 {[%clk 0:00:55.8]} 42. Kd3 {[%clk 0:02:06.2]} 42... e4+ {[%clk
0:00:46.4]} 43. Kxe4 {[%clk 0:01:56.1]} 43... Bxd2 {[%clk 0:00:47.1]} 44. Nf5
{[%clk 0:01:40.8]} 44... a5 {[%clk 0:00:47.8]} 45. Kd3 {[%clk 0:01:41.4]} 45...
Bb4 {[%clk 0:00:38.7]} 46. Kc4 {[%clk 0:01:40.3]} 46... Be1 {[%clk 0:00:38.4]}
47. Nd4+ {[%clk 0:01:29.2]} 47... Kd6 {[%clk 0:00:35.1]} 48. f3 {[%clk
0:01:25.4]} 48... a4 {[%clk 0:00:24.3]} 49. Nc2 {[%clk 0:01:25.5]} 49... Bd2
{[%clk 0:00:23.3]} 50. Kb5 {[%clk 0:00:59.9]} 50... Kd5 {[%clk 0:00:24.1]} 51.
Kxa4 {[%clk 0:00:38.8]} 51... Kc4 {[%clk 0:00:24.3]} 52. e4 {[%clk 0:00:38.9]}
52... Kd3 {[%clk 0:00:18.3]} 53. Kb3 {[%clk 0:00:38.8]} 53... Bf4 {[%clk
0:00:13.5]} 54. h3 {[%clk 0:00:31.7]} 54... Be5 {[%clk 0:00:14.5]} 55. Nb4+
{[%clk 0:00:26.8]} 55... Ke3 {[%clk 0:00:14.8]} 56. Kc4 {[%clk 0:00:28]} 56...
Kxf3 {[%clk 0:00:15.5]} 57. Kd3 {[%clk 0:00:29.5]} 57... Kg3 {[%clk 0:00:16]}
58. Ke2 {[%clk 0:00:30.8]} 58... Kxh3 {[%clk 0:00:15]} 59. Kf3 {[%clk
0:00:32.3]} 59... Kh4 {[%clk 0:00:12.4]} 60. Nd3 {[%clk 0:00:32]} 60... Kh3
{[%clk 0:00:13.2]} 61. Nc5 {[%clk 0:00:28.8]} 61... Kh2 {[%clk 0:00:12.5]} 62.
Nd7 {[%clk 0:00:28.7]} 62... Kh3 {[%clk 0:00:13.2]} 63. Nf8 {[%clk 0:00:30]}
63... Kh2 {[%clk 0:00:13]} 64. Ng6 {[%clk 0:00:31.5]} 64... Kh3 {[%clk
0:00:13.7]} 65. Ne7 {[%clk 0:00:32.4]} 65... Kh2 {[%clk 0:00:14.1]} 66. Nf5
{[%clk 0:00:33.4]} 66... Kh3 {[%clk 0:00:14.7]} 67. Nh6 {[%clk 0:00:33.2]} 67...
Kh2 {[%clk 0:00:14.6]} 68. Nf7 {[%clk 0:00:34.2]} 68... Kh3 {[%clk 0:00:15.2]}
69. Nd8 {[%clk 0:00:34.6]} 69... Kh2 {[%clk 0:00:15]} 70. Nc6 {[%clk 0:00:35.5]}
70... Kh3 {[%clk 0:00:15.8]} 71. Nb4 {[%clk 0:00:36]} 71... Kh4 {[%clk
0:00:14.3]} 72. Nd3 {[%clk 0:00:34.9]} 72... Kh3 {[%clk 0:00:14.2]} 73. Nf2+
{[%clk 0:00:30.6]} 73... Kh2 {[%clk 0:00:15.1]} 74. Nd1 {[%clk 0:00:28]} 74...
Kh3 {[%clk 0:00:15.2]} 75. Ne3 {[%clk 0:00:28.9]} 75... Bf4 {[%clk 0:00:13.5]}
76. Nc4 {[%clk 0:00:23.8]} 76... Kh2 {[%clk 0:00:13.7]} 77. Nb6 {[%clk
0:00:19.6]} 77... Be5 {[%clk 0:00:13.4]} 78. Nd7 {[%clk 0:00:20.1]} 78... Kh3
{[%clk 0:00:14.3]} 79. Nc5 {[%clk 0:00:20.9]} 79... Kh2 {[%clk 0:00:14.7]} 80.
Nb3 {[%clk 0:00:22.4]} 80... Kh3 {[%clk 0:00:15.7]} 81. Na5 {[%clk 0:00:23.5]}
81... Kh2 {[%clk 0:00:16.3]} 82. Nc4 {[%clk 0:00:25.1]} 82... Kh3 {[%clk
0:00:17.2]} 83. Ne3 {[%clk 0:00:26.6]} 83... Bf4 {[%clk 0:00:17.4]} 84. Nd1
{[%clk 0:00:25.9]} 84... Be5 {[%clk 0:00:16.6]} 85. Nf2+ {[%clk 0:00:27]} 85...
Kh2 {[%clk 0:00:16.6]} 86. Nd3 {[%clk 0:00:26.4]} 86... Kh3 {[%clk 0:00:17.2]}
1/2-1/2

[Event "GrandPrix_30.05"]
[Site "Chess.com"]
[Date "2020.05.30"]
[Round "5"]
[White "Lavrov_Maxim"]
[Black "ValeriyGrinev"]
[Result "1-0"]
[WhiteElo "2294"]
[BlackElo "2130"]
[TimeControl "600+2"]
[EndTime "10:29:57 PDT"]
[Termination "Lavrov_Maxim won by resignation"]

1. e4 {[%clk 0:10:01.9]} 1... c5 {[%clk 0:09:59.3]} 2. c3 {[%clk 0:10:01.5]}
2... Nf6 {[%clk 0:09:59.5]} 3. e5 {[%clk 0:10:02.4]} 3... Nd5 {[%clk 0:10:00.7]}
4. d4 {[%clk 0:10:03.9]} 4... cxd4 {[%clk 0:10:02]} 5. Nf3 {[%clk 0:10:04.2]}
5... e6 {[%clk 0:10:02.5]} 6. cxd4 {[%clk 0:10:04]} 6... d6 {[%clk 0:10:03.7]}
7. Nc3 {[%clk 0:10:04.5]} 7... Nxc3 {[%clk 0:10:03.4]} 8. bxc3 {[%clk
0:10:05.6]} 8... Qc7 {[%clk 0:10:04.7]} 9. Bd2 {[%clk 0:10:06.2]} 9... Nd7
{[%clk 0:10:06.2]} 10. exd6 {[%clk 0:10:05.7]} 10... Bxd6 {[%clk 0:10:08.1]} 11.
Bd3 {[%clk 0:10:05.9]} 11... O-O {[%clk 0:10:07.9]} 12. O-O {[%clk 0:10:04]}
12... b6 {[%clk 0:10:07.8]} 13. Re1 {[%clk 0:09:43.8]} 13... Bb7 {[%clk
0:10:07]} 14. h3 {[%clk 0:09:10.2]} 14... Bf4 {[%clk 0:10:04.5]} 15. Ng5 {[%clk
0:08:05.1]} 15... Nf6 {[%clk 0:09:37.7]} 16. Bxf4 {[%clk 0:07:58.2]} 16... Qxf4
{[%clk 0:09:37.4]} 17. Re5 {[%clk 0:07:59.2]} 17... Qh4 {[%clk 0:08:53.2]} 18.
Nxh7 {[%clk 0:07:47.7]} 18... Nxh7 {[%clk 0:07:55.3]} 19. Rh5 {[%clk 0:07:44.8]}
19... Qxh5 {[%clk 0:07:56.8]} 20. Qxh5 {[%clk 0:07:44.1]} 20... Nf6 {[%clk
0:07:58.7]} 21. Qg5 {[%clk 0:07:33.7]} 21... Rac8 {[%clk 0:07:58.9]} 22. Rc1
{[%clk 0:07:25.8]} 22... Be4 {[%clk 0:07:53.4]} 23. Bf1 {[%clk 0:06:59.5]} 23...
Rc7 {[%clk 0:07:48.6]} 24. h4 {[%clk 0:06:51.4]} 24... Rfc8 {[%clk 0:07:38.5]}
25. h5 {[%clk 0:06:18.2]} 25... Rxc3 {[%clk 0:07:35.8]} 26. h6 {[%clk
0:05:37.1]} 26... Bg6 {[%clk 0:07:32.2]} 27. Re1 {[%clk 0:05:28.7]} 27... Nh7
{[%clk 0:07:04.3]} 28. Qf4 {[%clk 0:05:20.1]} 28... gxh6 {[%clk 0:05:59.2]} 29.
Qxh6 {[%clk 0:05:18.5]} 29... Nf8 {[%clk 0:05:35.1]} 30. f3 {[%clk 0:04:39.7]}
30... Ra3 {[%clk 0:05:18.8]} 31. Re2 {[%clk 0:04:12]} 31... Rac3 {[%clk
0:04:40.5]} 32. Rd2 {[%clk 0:03:54.8]} 32... Rc1 {[%clk 0:04:39.4]} 33. Kf2
{[%clk 0:03:50.6]} 33... R8c2 {[%clk 0:04:37.9]} 34. Be2 {[%clk 0:03:42.8]}
34... Rxd2 {[%clk 0:04:39]} 35. Qxd2 {[%clk 0:03:42.8]} 35... Rc2 {[%clk
0:04:40.9]} 36. Qe3 {[%clk 0:03:27.5]} 36... Rxa2 {[%clk 0:04:41.2]} 37. g4
{[%clk 0:03:17.1]} 37... Nd7 {[%clk 0:04:34.1]} 38. Qg5 {[%clk 0:03:09.8]} 38...
Ra5 {[%clk 0:04:23.4]} 39. Qd8+ {[%clk 0:03:07.8]} 39... Nf8 {[%clk 0:04:25]}
40. Bc4 {[%clk 0:03:04.5]} 40... Kg7 {[%clk 0:04:26.2]} 41. f4 {[%clk
0:02:55.1]} 41... Nh7 {[%clk 0:04:19.5]} 42. g5 {[%clk 0:02:45.5]} 42... Nf8
{[%clk 0:04:16.1]} 43. d5 {[%clk 0:02:44.3]} 43... exd5 {[%clk 0:04:13.8]} 44.
Bxd5 {[%clk 0:02:45.1]} 44... Kg8 {[%clk 0:03:45]} 45. Kf3 {[%clk 0:02:35.3]}
45... Ra3+ {[%clk 0:03:44.9]} 46. Kg4 {[%clk 0:02:30]} 46... Rd3 {[%clk
0:03:46.1]} 47. Qa8 {[%clk 0:02:11.9]} 47... Rd4 {[%clk 0:03:27.6]} 48. Kf3
{[%clk 0:02:04.2]} 48... a5 {[%clk 0:03:21]} 49. Qb7 {[%clk 0:01:47.1]} 49...
Ne6 {[%clk 0:02:55.4]} 50. Qc8+ {[%clk 0:01:39.1]} 50... Nf8 {[%clk 0:02:43.6]}
51. Qb7 {[%clk 0:01:26.5]} 51... Ne6 {[%clk 0:02:43.5]} 52. Bxe6 {[%clk
0:01:22.6]} 52... Rd3+ {[%clk 0:02:44]} 53. Ke2 {[%clk 0:01:21.4]} 53... fxe6
{[%clk 0:02:44.4]} 54. Qb8+ {[%clk 0:01:17.3]} 54... Kf7 {[%clk 0:02:41.8]} 55.
Qh8 {[%clk 0:01:17.6]} 55... Bf5 {[%clk 0:02:05.9]} 56. Qf6+ {[%clk 0:01:17.3]}
56... Ke8 {[%clk 0:02:07.4]} 57. g6 {[%clk 0:01:18.4]} 57... Rg3 {[%clk
0:00:32.9]} 58. Qh8+ {[%clk 0:01:16.6]} 58... Kd7 {[%clk 0:00:23.8]} 59. g7
{[%clk 0:01:17]} 59... Rh3 {[%clk 0:00:18.5]} 60. Qxh3 {[%clk 0:01:10]} 60...
Bxh3 {[%clk 0:00:20.4]} 61. g8=Q {[%clk 0:01:10.4]} 61... Bf5 {[%clk 0:00:22.3]}
62. Ke3 {[%clk 0:01:10.1]} 62... Kc6 {[%clk 0:00:22.8]} 63. Kd4 {[%clk
0:01:11.2]} 63... Kb5 {[%clk 0:00:23.6]} 64. Qe8+ {[%clk 0:01:05.9]} 64... Kb4
{[%clk 0:00:23.3]} 65. Qc6 {[%clk 0:00:44.8]} 65... b5 {[%clk 0:00:21.3]} 66.
Qc3+ {[%clk 0:00:40.7]} 66... Ka4 {[%clk 0:00:21.9]} 67. Kc5 {[%clk 0:00:38.7]}
67... b4 {[%clk 0:00:20]} 68. Qa1+ {[%clk 0:00:38.9]} 68... Kb3 {[%clk
0:00:21.1]} 69. Qxa5 {[%clk 0:00:39.6]} 69... Kc3 {[%clk 0:00:22.6]} 70. Qxb4+
{[%clk 0:00:40.1]} 70... Kd3 {[%clk 0:00:24.5]} 71. Qd4+ {[%clk 0:00:40.7]}
71... Ke2 {[%clk 0:00:25.8]} 72. Kd6 {[%clk 0:00:41.1]} 72... Kf3 {[%clk
0:00:27.2]} 73. Ke5 {[%clk 0:00:41]} 73... Kg4 {[%clk 0:00:28.3]} 74. Qg1+
{[%clk 0:00:41]} 74... Kf3 {[%clk 0:00:29.3]} 75. Qg5 {[%clk 0:00:33.9]} 75...
Bh3 {[%clk 0:00:28.1]} 76. Qh5+ {[%clk 0:00:32.9]} 76... Bg4 {[%clk 0:00:29.6]}
77. Qh1+ {[%clk 0:00:29.8]} 77... Kg3 {[%clk 0:00:30.9]} 78. Qe4 {[%clk
0:00:25]} 78... Kh4 {[%clk 0:00:24.6]} 79. Kf6 {[%clk 0:00:22.3]} 79... Kg3
{[%clk 0:00:23.2]} 80. Qe3+ {[%clk 0:00:23.3]} 80... Kh4 {[%clk 0:00:23]} 81.
Qf2+ {[%clk 0:00:24.1]} 81... Kh3 {[%clk 0:00:24]} 82. Kg5 {[%clk 0:00:25.1]}
82... Bf5 {[%clk 0:00:24.7]} 83. Qg1 {[%clk 0:00:26.1]} 83... Bc2 {[%clk
0:00:12.8]} 84. f5 {[%clk 0:00:24.2]} 84... Bxf5 {[%clk 0:00:12.6]} 85. Kf4
{[%clk 0:00:25.2]} 1-0